[Event "*** SCC Grand Prix: Titled Tuesday Blitz"]
[Site "Chess.com"]
[Date "2020.06.09"]
[Round "2"]
[White "MartinCerveny"]
[Black "earling8018"]
[Result "1-0"]
[WhiteElo "2502"]
[BlackElo "2058"]
[TimeControl "180+1"]
[EndTime "9:18:12 PDT"]
[Termination "MartinCerveny won on time"]

1. d4 {[%clk 0:03:00.9]} 1... d5 {[%clk 0:03:00]} 2. c4 {[%clk 0:03:00.9]} 2...
e6 {[%clk 0:03:00.3]} 3. Nc3 {[%clk 0:03:00.5]} 3... Nf6 {[%clk 0:03:00.6]} 4.
cxd5 {[%clk 0:03:00.6]} 4... exd5 {[%clk 0:03:00.3]} 5. Bg5 {[%clk 0:03:01.1]}
5... c5 {[%clk 0:02:51.3]} 6. Bxf6 {[%clk 0:02:47]} 6... gxf6 {[%clk 0:02:46.3]}
7. e3 {[%clk 0:02:46.3]} 7... Nc6 {[%clk 0:02:42.4]} 8. dxc5 {[%clk 0:02:44.8]}
8... d4 {[%clk 0:02:15.7]} 9. exd4 {[%clk 0:02:45.7]} 9... Nxd4 {[%clk
0:02:14.4]} 10. Nge2 {[%clk 0:02:31.2]} 10... Bxc5 {[%clk 0:02:07.5]} 11. Nxd4
{[%clk 0:02:30.7]} 11... Qxd4 {[%clk 0:01:58.2]} 12. Bb5+ {[%clk 0:02:30.5]}
12... Kf8 {[%clk 0:01:54.3]} 13. O-O {[%clk 0:02:29.8]} 13... Qxd1 {[%clk
0:01:50.6]} 14. Raxd1 {[%clk 0:02:30.7]} 14... Be6 {[%clk 0:01:50.8]} 15. Bd7
{[%clk 0:02:20.6]} 15... Bc4 {[%clk 0:00:50.5]} 16. Rfe1 {[%clk 0:02:16.3]}
16... Rd8 {[%clk 0:00:41.5]} 17. h3 {[%clk 0:01:52.4]} 17... Kg7 {[%clk
0:00:34.5]} 18. Re4 {[%clk 0:01:50.7]} 18... Be6 {[%clk 0:00:29.6]} 19. Bxe6
{[%clk 0:01:46.7]} 19... Rxd1+ {[%clk 0:00:30.5]} 20. Nxd1 {[%clk 0:01:46.2]}
20... fxe6 {[%clk 0:00:26.9]} 21. Rxe6 {[%clk 0:01:47.1]} 21... Rd8 {[%clk
0:00:26.2]} 22. Nc3 {[%clk 0:01:46.4]} 22... Rd2 {[%clk 0:00:24.9]} 23. Re2
{[%clk 0:01:44.5]} 23... Rxe2 {[%clk 0:00:19.1]} 24. Nxe2 {[%clk 0:01:45.4]}
24... f5 {[%clk 0:00:19]} 25. g3 {[%clk 0:01:42]} 25... Kf6 {[%clk 0:00:18.8]}
26. Kg2 {[%clk 0:01:42.3]} 26... Ke5 {[%clk 0:00:18.7]} 27. Kf3 {[%clk
0:01:34.3]} 27... Kd5 {[%clk 0:00:17.9]} 28. b3 {[%clk 0:01:33.5]} 28... a5
{[%clk 0:00:16.5]} 29. Nf4+ {[%clk 0:01:24.7]} 29... Kc6 {[%clk 0:00:05.9]} 30.
Ke2 {[%clk 0:01:14.4]} 30... Kb5 {[%clk 0:00:05.7]} 31. Nd3 {[%clk 0:01:12.6]}
31... Bb6 {[%clk 0:00:04.6]} 32. f3 {[%clk 0:01:12]} 32... a4 {[%clk 0:00:04.8]}
33. g4 {[%clk 0:01:10.9]} 33... axb3 {[%clk 0:00:03.3]} 34. axb3 {[%clk
0:01:11.8]} 34... fxg4 {[%clk 0:00:03.6]} 35. fxg4 {[%clk 0:01:12.2]} 35... Kc6
{[%clk 0:00:03.3]} 36. Kf3 {[%clk 0:01:10.4]} 36... Kd5 {[%clk 0:00:03.5]} 37.
g5 {[%clk 0:01:10.4]} 37... Kd4 {[%clk 0:00:03.5]} 38. Ke2 {[%clk 0:01:02.8]}
38... Kc3 {[%clk 0:00:03.8]} 39. b4 {[%clk 0:01:00.7]} 39... Bd4 {[%clk
0:00:03.1]} 40. h4 {[%clk 0:00:59.9]} 40... b5 {[%clk 0:00:03.1]} 41. h5 {[%clk
0:00:59.9]} 41... Bg7 {[%clk 0:00:02.9]} 42. Nf4 {[%clk 0:00:54.4]} 42... Be5
{[%clk 0:00:02.4]} 43. Nd5+ {[%clk 0:00:52.6]} 43... Kc4 {[%clk 0:00:02]} 44.
Nf6 {[%clk 0:00:52.7]} 44... Kxb4 {[%clk 0:00:02]} 45. Nxh7 {[%clk 0:00:52.8]}
1-0

[Event "*** SCC Grand Prix: Titled Tuesday Blitz"]
[Site "Chess.com"]
[Date "2020.06.09"]
[Round "2"]
[White "Gennady_Kozlov"]
[Black "rpragchess"]
[Result "0-1"]
[WhiteElo "2570"]
[BlackElo "2837"]
[TimeControl "180+1"]
[EndTime "9:18:14 PDT"]
[Termination "rpragchess won by checkmate"]

1. b3 {[%clk 0:03:00.9]} 1... e5 {[%clk 0:02:57.1]} 2. Bb2 {[%clk 0:02:57.8]}
2... Nc6 {[%clk 0:02:57.2]} 3. e3 {[%clk 0:02:56.8]} 3... Nf6 {[%clk 0:02:56.1]}
4. d4 {[%clk 0:02:56.1]} 4... exd4 {[%clk 0:02:51.1]} 5. exd4 {[%clk 0:02:57]}
5... d5 {[%clk 0:02:51.3]} 6. Bd3 {[%clk 0:02:57.2]} 6... Bd6 {[%clk 0:02:50]}
7. Ne2 {[%clk 0:02:57.4]} 7... O-O {[%clk 0:02:49.6]} 8. h3 {[%clk 0:02:52.3]}
8... Ne7 {[%clk 0:02:47.5]} 9. Nd2 {[%clk 0:02:50.8]} 9... Bf5 {[%clk
0:02:45.6]} 10. Bxf5 {[%clk 0:02:50.3]} 10... Nxf5 {[%clk 0:02:46.5]} 11. Nf3
{[%clk 0:02:50.6]} 11... c6 {[%clk 0:02:42.8]} 12. Qd3 {[%clk 0:02:48.5]} 12...
Ne4 {[%clk 0:02:42]} 13. g4 {[%clk 0:02:43.8]} 13... Nh4 {[%clk 0:02:38.7]} 14.
Rf1 {[%clk 0:02:32.7]} 14... Ng2+ {[%clk 0:02:29.4]} 15. Kd1 {[%clk 0:02:31.9]}
15... Qf6 {[%clk 0:02:26.4]} 16. c4 {[%clk 0:02:19.2]} 16... a5 {[%clk
0:02:06.7]} 17. Kc2 {[%clk 0:02:16.3]} 17... a4 {[%clk 0:02:05.8]} 18. Ng3
{[%clk 0:02:10]} 18... axb3+ {[%clk 0:01:44.4]} 19. axb3 {[%clk 0:02:08.4]}
19... Rxa1 {[%clk 0:01:26]} 20. Bxa1 {[%clk 0:02:07.9]} 20... Bxg3 {[%clk
0:01:16.2]} 21. fxg3 {[%clk 0:02:04.7]} 21... Nxg3 {[%clk 0:01:16.2]} 22. Rg1
{[%clk 0:01:58.3]} 22... Nf4 {[%clk 0:01:14.3]} 23. Qe3 {[%clk 0:01:52]} 23...
Qg6+ {[%clk 0:00:49.4]} 24. Kd2 {[%clk 0:01:46.7]} 24... Ne4+ {[%clk 0:00:48.8]}
25. Ke1 {[%clk 0:01:41.8]} 25... Qd6 {[%clk 0:00:24.8]} 26. c5 {[%clk
0:01:35.6]} 26... Qc7 {[%clk 0:00:23.8]} 27. Bc3 {[%clk 0:01:27]} 27... Re8
{[%clk 0:00:17.7]} 28. Ne5 {[%clk 0:01:25.7]} 28... f6 {[%clk 0:00:16.7]} 29.
Qxf4 {[%clk 0:00:28.8]} 29... fxe5 {[%clk 0:00:14.9]} 30. Qc1 {[%clk 0:00:19.4]}
30... Nxc3 {[%clk 0:00:14.1]} 31. Rf1 {[%clk 0:00:17]} 31... exd4+ {[%clk
0:00:13.8]} 32. Kd2 {[%clk 0:00:17.2]} 32... Qh2+ {[%clk 0:00:13.1]} 33. Kd3
{[%clk 0:00:16]} 33... Qxh3+ {[%clk 0:00:11.2]} 34. Kxd4 {[%clk 0:00:15.7]}
34... Ne2# {[%clk 0:00:09.3]} 0-1

[Event "*** SCC Grand Prix: Titled Tuesday Blitz"]
[Site "Chess.com"]
[Date "2020.06.09"]
[Round "2"]
[White "vaishali2001"]
[Black "Kilpkonn"]
[Result "1-0"]
[WhiteElo "2645"]
[BlackElo "2037"]
[TimeControl "180+1"]
[EndTime "9:18:17 PDT"]
[Termination "vaishali2001 won on time"]

1. Nf3 {[%clk 0:02:59.6]} 1... c5 {[%clk 0:02:57.5]} 2. g3 {[%clk 0:02:57.9]}
2... Nc6 {[%clk 0:02:56.8]} 3. Bg2 {[%clk 0:02:58.5]} 3... Nf6 {[%clk
0:02:55.7]} 4. O-O {[%clk 0:02:56.7]} 4... g6 {[%clk 0:02:54.7]} 5. b3 {[%clk
0:02:50]} 5... Bg7 {[%clk 0:02:54.1]} 6. Bb2 {[%clk 0:02:50.6]} 6... d5 {[%clk
0:02:53.1]} 7. d4 {[%clk 0:02:48.1]} 7... cxd4 {[%clk 0:02:46]} 8. Nxd4 {[%clk
0:02:49]} 8... O-O {[%clk 0:02:45.3]} 9. c4 {[%clk 0:02:35.1]} 9... Nxd4 {[%clk
0:02:22]} 10. Bxd4 {[%clk 0:02:36]} 10... dxc4 {[%clk 0:02:16.1]} 11. bxc4
{[%clk 0:02:22.6]} 11... Qc7 {[%clk 0:02:12.9]} 12. Qb3 {[%clk 0:02:11.2]} 12...
Be6 {[%clk 0:01:49.4]} 13. Na3 {[%clk 0:02:05]} 13... a6 {[%clk 0:01:21.9]} 14.
Qxb7 {[%clk 0:01:54.6]} 14... Qd6 {[%clk 0:01:16.2]} 15. Nc2 {[%clk 0:01:14.2]}
15... Rab8 {[%clk 0:01:01.3]} 16. Qf3 {[%clk 0:01:05.2]} 16... Bxc4 {[%clk
0:00:56.7]} 17. Rfd1 {[%clk 0:00:32.9]} 17... Qe6 {[%clk 0:00:46]} 18. e4 {[%clk
0:00:16.7]} 18... Rfc8 {[%clk 0:00:35.4]} 19. Ne3 {[%clk 0:00:13.3]} 19... h5
{[%clk 0:00:20.4]} 20. h3 {[%clk 0:00:12.9]} 20... Qc6 {[%clk 0:00:16.5]} 21.
Nd5 {[%clk 0:00:11.6]} 21... Nxd5 {[%clk 0:00:14.6]} 22. exd5 {[%clk 0:00:12.5]}
22... Qa4 {[%clk 0:00:13.2]} 23. Bxg7 {[%clk 0:00:11.9]} 23... Kxg7 {[%clk
0:00:12.4]} 24. Qf4 {[%clk 0:00:11.6]} 24... Rb6 {[%clk 0:00:10.1]} 25. Qe5+
{[%clk 0:00:09.3]} 25... Rf6 {[%clk 0:00:09.5]} 26. Qxe7 {[%clk 0:00:08.6]}
26... Qc2 {[%clk 0:00:08.6]} 27. Qe3 {[%clk 0:00:09.1]} 27... Rb8 {[%clk
0:00:05.8]} 28. Rd2 {[%clk 0:00:08.6]} 28... Qa4 {[%clk 0:00:03.8]} 29. Re1
{[%clk 0:00:07.5]} 29... Bxa2 {[%clk 0:00:01.1]} 30. d6 {[%clk 0:00:06.9]} 1-0

[Event "*** SCC Grand Prix: Titled Tuesday Blitz"]
[Site "Chess.com"]
[Date "2020.06.09"]
[Round "2"]
[White "BJthechessgod"]
[Black "Falia-p"]
[Result "1-0"]
[WhiteElo "2134"]
[BlackElo "2404"]
[TimeControl "180+1"]
[EndTime "9:18:17 PDT"]
[Termination "BJthechessgod won by checkmate"]

1. e4 {[%clk 0:03:00.9]} 1... c5 {[%clk 0:02:58.8]} 2. Nf3 {[%clk 0:02:59.9]}
2... Nc6 {[%clk 0:02:57.7]} 3. Bb5 {[%clk 0:02:49.3]} 3... g6 {[%clk 0:02:57.2]}
4. Bxc6 {[%clk 0:02:46.7]} 4... dxc6 {[%clk 0:02:58.1]} 5. d3 {[%clk 0:02:46.6]}
5... Bg7 {[%clk 0:02:57.8]} 6. h3 {[%clk 0:02:46.3]} 6... e5 {[%clk 0:02:57.5]}
7. Nc3 {[%clk 0:02:40.5]} 7... Ne7 {[%clk 0:02:57.1]} 8. Be3 {[%clk 0:02:39.7]}
8... b6 {[%clk 0:02:53.9]} 9. Qd2 {[%clk 0:02:36.6]} 9... O-O {[%clk 0:02:47.8]}
10. Bh6 {[%clk 0:02:27.7]} 10... f6 {[%clk 0:02:37.4]} 11. Be3 {[%clk
0:02:17.7]} 11... Be6 {[%clk 0:02:35.7]} 12. h4 {[%clk 0:02:11.9]} 12... c4
{[%clk 0:02:29.7]} 13. h5 {[%clk 0:01:39.3]} 13... cxd3 {[%clk 0:02:27.5]} 14.
hxg6 {[%clk 0:01:33.6]} 14... hxg6 {[%clk 0:02:12.9]} 15. cxd3 {[%clk
0:01:09.5]} 15... Qd7 {[%clk 0:01:58.4]} 16. O-O-O {[%clk 0:01:08.8]} 16... Rfd8
{[%clk 0:01:46.2]} 17. Bh6 {[%clk 0:01:01.1]} 17... g5 {[%clk 0:01:39.2]} 18.
Bxg5 {[%clk 0:00:22.5]} 18... fxg5 {[%clk 0:01:23.4]} 19. Nxg5 {[%clk
0:00:23.4]} 19... Ng6 {[%clk 0:01:18.2]} 20. Rh7 {[%clk 0:00:16.6]} 20... Nf4
{[%clk 0:01:07.1]} 21. Rdh1 {[%clk 0:00:10.8]} 21... Qxd3 {[%clk 0:01:01.8]} 22.
Qe1 {[%clk 0:00:03.1]} 22... Bg4 {[%clk 0:00:31.6]} 23. f3 {[%clk 0:00:03.2]}
23... Bc8 {[%clk 0:00:23.8]} 24. Qh4 {[%clk 0:00:02.8]} 24... Ne2+ {[%clk
0:00:11.1]} 25. Nxe2 {[%clk 0:00:02.3]} 25... Qd2+ {[%clk 0:00:09.3]} 26. Kb1
{[%clk 0:00:02.5]} 26... Ba6 {[%clk 0:00:03.9]} 27. Rxg7+ {[%clk 0:00:01.9]}
27... Kxg7 {[%clk 0:00:04.2]} 28. Qh6+ {[%clk 0:00:02.3]} 28... Kg8 {[%clk
0:00:01.3]} 29. Qh7+ {[%clk 0:00:02.9]} 29... Kf8 {[%clk 0:00:01.5]} 30. Qf7#
{[%clk 0:00:03.8]} 1-0

[Event "*** SCC Grand Prix: Titled Tuesday Blitz"]
[Site "Chess.com"]
[Date "2020.06.09"]
[Round "2"]
[White "ChessyInstinct"]
[Black "GM-2023"]
[Result "1-0"]
[WhiteElo "2409"]
[BlackElo "2062"]
[TimeControl "180+1"]
[EndTime "9:18:19 PDT"]
[Termination "ChessyInstinct won on time"]

1. d4 {[%clk 0:03:00.9]} 1... Nf6 {[%clk 0:02:59.1]} 2. c4 {[%clk 0:02:56]} 2...
e6 {[%clk 0:02:58.8]} 3. g3 {[%clk 0:02:55.9]} 3... c5 {[%clk 0:02:55.4]} 4. d5
{[%clk 0:02:56]} 4... exd5 {[%clk 0:02:55.5]} 5. cxd5 {[%clk 0:02:56.9]} 5... d6
{[%clk 0:02:56]} 6. Nc3 {[%clk 0:02:56.9]} 6... g6 {[%clk 0:02:35.2]} 7. Bg2
{[%clk 0:02:56.8]} 7... Bg7 {[%clk 0:02:35.8]} 8. Nf3 {[%clk 0:02:57.2]} 8...
O-O {[%clk 0:02:35.7]} 9. O-O {[%clk 0:02:57.5]} 9... Re8 {[%clk 0:02:36.1]} 10.
Bf4 {[%clk 0:02:57.9]} 10... Ne4 {[%clk 0:02:30.4]} 11. Nxe4 {[%clk 0:02:54.1]}
11... Rxe4 {[%clk 0:02:31.3]} 12. Nd2 {[%clk 0:02:54.2]} 12... Rxf4 {[%clk
0:02:30.5]} 13. gxf4 {[%clk 0:02:54.1]} 13... Bxb2 {[%clk 0:02:30.6]} 14. Rb1
{[%clk 0:02:53.3]} 14... Bg7 {[%clk 0:02:22.2]} 15. Nc4 {[%clk 0:02:49.4]} 15...
b5 {[%clk 0:02:05.1]} 16. Rxb5 {[%clk 0:02:43.4]} 16... Ba6 {[%clk 0:02:05.1]}
17. Qa4 {[%clk 0:02:33.8]} 17... Bxb5 {[%clk 0:01:24.6]} 18. Qxb5 {[%clk
0:02:34.7]} 18... Qe7 {[%clk 0:01:25.1]} 19. e4 {[%clk 0:02:12.2]} 19... Nd7
{[%clk 0:00:43.5]} 20. Qc6 {[%clk 0:01:54.1]} 20... Rb8 {[%clk 0:00:30.2]} 21.
Qxd6 {[%clk 0:01:46.7]} 21... Qxd6 {[%clk 0:00:26]} 22. Nxd6 {[%clk 0:01:47.6]}
22... Rb2 {[%clk 0:00:26.5]} 23. e5 {[%clk 0:01:29.7]} 23... Nb6 {[%clk
0:00:14.4]} 24. Re1 {[%clk 0:01:14.2]} 24... Bf8 {[%clk 0:00:11]} 25. Ne4 {[%clk
0:00:53.7]} 25... c4 {[%clk 0:00:10.5]} 26. d6 {[%clk 0:00:44.7]} 26... Na4
{[%clk 0:00:08.7]} 27. Rc1 {[%clk 0:00:28.5]} 27... Nb6 {[%clk 0:00:05.8]} 28.
Nf6+ {[%clk 0:00:14.5]} 28... Kg7 {[%clk 0:00:05.6]} 29. Nd5 {[%clk 0:00:14.8]}
29... Rxa2 {[%clk 0:00:01.5]} 30. Nxb6 {[%clk 0:00:14.2]} 30... axb6 {[%clk
0:00:02.4]} 31. Bd5 {[%clk 0:00:14.3]} 31... b5 {[%clk 0:00:02.2]} 32. Rb1
{[%clk 0:00:14.1]} 32... Ra5 {[%clk 0:00:02.1]} 33. Bc6 {[%clk 0:00:11.2]} 33...
Be7 {[%clk 0:00:01.1]} 34. dxe7 {[%clk 0:00:10.8]} 1-0

[Event "*** SCC Grand Prix: Titled Tuesday Blitz"]
[Site "Chess.com"]
[Date "2020.06.09"]
[Round "2"]
[White "DenishevM"]
[Black "Bastiandash"]
[Result "1-0"]
[WhiteElo "2551"]
[BlackElo "2168"]
[TimeControl "180+1"]
[EndTime "9:18:20 PDT"]
[Termination "DenishevM won on time"]

1. d4 {[%clk 0:03:00.9]} 1... Nf6 {[%clk 0:03:00]} 2. c4 {[%clk 0:03:00.9]} 2...
e6 {[%clk 0:03:00.9]} 3. Nf3 {[%clk 0:03:00.9]} 3... Bb4+ {[%clk 0:03:01.4]} 4.
Bd2 {[%clk 0:03:00.8]} 4... a5 {[%clk 0:03:01.6]} 5. Bxb4 {[%clk 0:02:58.9]}
5... axb4 {[%clk 0:03:02.5]} 6. e3 {[%clk 0:02:59.5]} 6... O-O {[%clk
0:02:40.8]} 7. Bd3 {[%clk 0:02:59.4]} 7... c5 {[%clk 0:02:35.6]} 8. O-O {[%clk
0:02:54.9]} 8... cxd4 {[%clk 0:02:33]} 9. exd4 {[%clk 0:02:53.7]} 9... d5 {[%clk
0:02:33.9]} 10. Nbd2 {[%clk 0:02:45]} 10... dxc4 {[%clk 0:02:28.5]} 11. Nxc4
{[%clk 0:02:45.9]} 11... Nc6 {[%clk 0:02:29]} 12. Nce5 {[%clk 0:02:37.3]} 12...
Bd7 {[%clk 0:02:06.9]} 13. Qe2 {[%clk 0:02:32.8]} 13... g6 {[%clk 0:02:01.8]}
14. Rfd1 {[%clk 0:02:18.7]} 14... Nd5 {[%clk 0:02:00.8]} 15. g3 {[%clk
0:02:14.2]} 15... Nxe5 {[%clk 0:01:43.9]} 16. dxe5 {[%clk 0:02:12.7]} 16... Qe7
{[%clk 0:01:40.4]} 17. h4 {[%clk 0:02:10]} 17... Bc6 {[%clk 0:01:31.7]} 18. Ng5
{[%clk 0:02:08]} 18... f6 {[%clk 0:01:04.4]} 19. exf6 {[%clk 0:02:03.8]} 19...
Rxf6 {[%clk 0:01:05.3]} 20. f4 {[%clk 0:01:59.9]} 20... Raf8 {[%clk 0:00:49.7]}
21. Ne4 {[%clk 0:01:43.7]} 21... R6f7 {[%clk 0:00:23.4]} 22. Rf1 {[%clk
0:01:42.5]} 22... Nxf4 {[%clk 0:00:21.2]} 23. Rxf4 {[%clk 0:01:39.1]} 23... Rxf4
{[%clk 0:00:22.1]} 24. gxf4 {[%clk 0:01:39.8]} 24... Rxf4 {[%clk 0:00:23]} 25.
Rf1 {[%clk 0:01:28.1]} 25... Rxh4 {[%clk 0:00:09.3]} 26. Nf6+ {[%clk 0:00:36.6]}
26... Kg7 {[%clk 0:00:09.1]} 27. Be4 {[%clk 0:00:27]} 27... Qc5+ {[%clk
0:00:08.4]} 28. Rf2 {[%clk 0:00:19]} 28... Qg5+ {[%clk 0:00:05]} 29. Bg2 {[%clk
0:00:18]} 29... Bxg2 {[%clk 0:00:03.5]} 30. Ne8+ {[%clk 0:00:18.2]} 30... Kh6
{[%clk 0:00:03.6]} 31. Rxg2 {[%clk 0:00:18.1]} 31... Qc1+ {[%clk 0:00:04]} 32.
Kf2 {[%clk 0:00:14.1]} 32... Rf4+ {[%clk 0:00:02.1]} 33. Kg3 {[%clk 0:00:13.5]}
33... Rf5 {[%clk 0:00:02.3]} 34. Rh2+ {[%clk 0:00:10.4]} 1-0

[Event "*** SCC Grand Prix: Titled Tuesday Blitz"]
[Site "Chess.com"]
[Date "2020.06.09"]
[Round "2"]
[White "AGW2016"]
[Black "woodhy"]
[Result "0-1"]
[WhiteElo "2235"]
[BlackElo "2456"]
[TimeControl "180+1"]
[EndTime "9:18:21 PDT"]
[Termination "woodhy won by checkmate"]

1. d4 {[%clk 0:03:00.9]} 1... Nf6 {[%clk 0:02:58.4]} 2. c4 {[%clk 0:03:01.1]}
2... e6 {[%clk 0:02:58.4]} 3. g3 {[%clk 0:03:01.3]} 3... Bb4+ {[%clk 0:02:55]}
4. Bd2 {[%clk 0:03:00.9]} 4... a5 {[%clk 0:02:53.1]} 5. Bg2 {[%clk 0:02:59.9]}
5... O-O {[%clk 0:02:52.5]} 6. Nf3 {[%clk 0:03:00.1]} 6... d5 {[%clk 0:02:52.6]}
7. O-O {[%clk 0:03:00.3]} 7... dxc4 {[%clk 0:02:51.4]} 8. Qc2 {[%clk 0:03:00.3]}
8... Nbd7 {[%clk 0:02:32.7]} 9. Qxc4 {[%clk 0:02:46.8]} 9... Nb6 {[%clk
0:02:27.9]} 10. Qc2 {[%clk 0:02:46.3]} 10... Qe7 {[%clk 0:02:24.3]} 11. Nc3
{[%clk 0:02:43.7]} 11... c6 {[%clk 0:02:18.9]} 12. a3 {[%clk 0:02:37.5]} 12...
Bxc3 {[%clk 0:02:15.5]} 13. Bxc3 {[%clk 0:02:37.5]} 13... Nbd5 {[%clk
0:02:07.2]} 14. Bd2 {[%clk 0:02:27.1]} 14... Nd7 {[%clk 0:02:00.9]} 15. e4
{[%clk 0:02:26]} 15... N5f6 {[%clk 0:02:00]} 16. a4 {[%clk 0:02:22]} 16... e5
{[%clk 0:01:59.3]} 17. Bc3 {[%clk 0:02:20.5]} 17... exd4 {[%clk 0:01:57.9]} 18.
Nxd4 {[%clk 0:02:20.2]} 18... Ne5 {[%clk 0:01:54.5]} 19. f4 {[%clk 0:02:17.6]}
19... Nc4 {[%clk 0:01:53.4]} 20. Rae1 {[%clk 0:02:15.2]} 20... Ng4 {[%clk
0:01:46.4]} 21. Qd3 {[%clk 0:02:05.2]} 21... Qc5 {[%clk 0:01:39]} 22. h3 {[%clk
0:01:59.1]} 22... Nf6 {[%clk 0:01:36.4]} 23. e5 {[%clk 0:01:58.1]} 23... Nd5
{[%clk 0:01:31.1]} 24. Kh2 {[%clk 0:01:57.8]} 24... Rd8 {[%clk 0:01:23.6]} 25.
Nb3 {[%clk 0:01:55]} 25... Qb6 {[%clk 0:00:33.2]} 26. Qxc4 {[%clk 0:01:52]}
26... Be6 {[%clk 0:00:20.4]} 27. Nd4 {[%clk 0:01:45.5]} 27... Ne3 {[%clk
0:00:16.6]} 28. Qe2 {[%clk 0:01:25.7]} 28... Nxf1+ {[%clk 0:00:16.6]} 29. Rxf1
{[%clk 0:01:24.8]} 29... Rxd4 {[%clk 0:00:17.5]} 30. Bxd4 {[%clk 0:01:25.3]}
30... Qxd4 {[%clk 0:00:18.1]} 31. Rd1 {[%clk 0:01:09.1]} 31... Qxa4 {[%clk
0:00:17.2]} 32. Qd2 {[%clk 0:01:09.5]} 32... h5 {[%clk 0:00:15.5]} 33. Qd3
{[%clk 0:01:03.7]} 33... Qb4 {[%clk 0:00:15.1]} 34. f5 {[%clk 0:01:03.9]} 34...
Bc4 {[%clk 0:00:14]} 35. Qd4 {[%clk 0:01:04.2]} 35... Bb3 {[%clk 0:00:13.5]} 36.
Qd7 {[%clk 0:00:57.4]} 36... Bxd1 {[%clk 0:00:12]} 37. Qxd1 {[%clk 0:00:56.8]}
37... Qe7 {[%clk 0:00:11.4]} 38. Qe2 {[%clk 0:00:51.8]} 38... Re8 {[%clk
0:00:09.7]} 39. Qxh5 {[%clk 0:00:50.6]} 39... Qxe5 {[%clk 0:00:09.8]} 40. Qg4
{[%clk 0:00:51.1]} 40... Qf6 {[%clk 0:00:09.8]} 41. h4 {[%clk 0:00:51.3]} 41...
Qxb2 {[%clk 0:00:09.8]} 42. h5 {[%clk 0:00:51.7]} 42... Re2 {[%clk 0:00:08.9]}
43. Qf3 {[%clk 0:00:42.9]} 43... Rxg2+ {[%clk 0:00:08.8]} 44. Qxg2 {[%clk
0:00:43.4]} 44... Qxg2+ {[%clk 0:00:09.5]} 45. Kxg2 {[%clk 0:00:44.3]} 45... a4
{[%clk 0:00:10.4]} 46. Kf2 {[%clk 0:00:44.9]} 46... a3 {[%clk 0:00:11.3]} 47. g4
{[%clk 0:00:44.4]} 47... a2 {[%clk 0:00:12.2]} 48. g5 {[%clk 0:00:45.1]} 48...
a1=Q {[%clk 0:00:12.3]} 49. Kf3 {[%clk 0:00:45.9]} 49... Qd4 {[%clk 0:00:12.1]}
50. Kg3 {[%clk 0:00:46]} 50... c5 {[%clk 0:00:13]} 51. g6 {[%clk 0:00:46.5]}
51... c4 {[%clk 0:00:13.9]} 52. h6 {[%clk 0:00:47]} 52... fxg6 {[%clk
0:00:13.9]} 53. fxg6 {[%clk 0:00:47.2]} 53... gxh6 {[%clk 0:00:14.8]} 54. g7
{[%clk 0:00:47.7]} 54... Kxg7 {[%clk 0:00:12.8]} 55. Kf3 {[%clk 0:00:48.2]}
55... c3 {[%clk 0:00:13.5]} 56. Kg3 {[%clk 0:00:48.8]} 56... c2 {[%clk
0:00:14.4]} 57. Kh3 {[%clk 0:00:49.1]} 57... c1=Q {[%clk 0:00:15.3]} 58. Kg3
{[%clk 0:00:50]} 58... Qcc3+ {[%clk 0:00:15.5]} 59. Kg2 {[%clk 0:00:50.4]} 59...
Qdd2+ {[%clk 0:00:16.4]} 60. Kf1 {[%clk 0:00:50.7]} 60... Qcc1# {[%clk
0:00:17.3]} 0-1

[Event "*** SCC Grand Prix: Titled Tuesday Blitz"]
[Site "Chess.com"]
[Date "2020.06.09"]
[Round "2"]
[White "Aygehovit1992"]
[Black "kot60"]
[Result "1-0"]
[WhiteElo "2686"]
[BlackElo "2351"]
[TimeControl "180+1"]
[EndTime "9:18:22 PDT"]
[Termination "Aygehovit1992 won on time"]

1. e4 {[%clk 0:02:48]} 1... e5 {[%clk 0:02:59.7]} 2. Nf3 {[%clk 0:02:47.4]} 2...
Nc6 {[%clk 0:02:58.9]} 3. Bb5 {[%clk 0:02:47.1]} 3... a6 {[%clk 0:02:59.1]} 4.
Ba4 {[%clk 0:02:47.1]} 4... d6 {[%clk 0:02:59.1]} 5. d4 {[%clk 0:02:46.3]} 5...
Bd7 {[%clk 0:02:58.3]} 6. d5 {[%clk 0:02:46.2]} 6... Nb8 {[%clk 0:02:57.9]} 7.
c4 {[%clk 0:02:46.2]} 7... Ne7 {[%clk 0:02:55.5]} 8. Nc3 {[%clk 0:02:46.1]} 8...
Ng6 {[%clk 0:02:55.4]} 9. Be3 {[%clk 0:02:45.9]} 9... Be7 {[%clk 0:02:55.3]} 10.
O-O {[%clk 0:02:42.3]} 10... h6 {[%clk 0:02:55.2]} 11. Ne1 {[%clk 0:02:42.1]}
11... Bg5 {[%clk 0:02:54.8]} 12. Nc2 {[%clk 0:02:32.3]} 12... O-O {[%clk
0:02:38.1]} 13. b4 {[%clk 0:02:26]} 13... a5 {[%clk 0:02:36]} 14. Bxd7 {[%clk
0:02:23.4]} 14... axb4 {[%clk 0:02:21]} 15. Nxb4 {[%clk 0:02:02.8]} 15... Nxd7
{[%clk 0:02:19.4]} 16. Bxg5 {[%clk 0:01:55.5]} 16... Qxg5 {[%clk 0:02:17.1]} 17.
g3 {[%clk 0:01:55.8]} 17... Nc5 {[%clk 0:02:12.6]} 18. Nd3 {[%clk 0:01:44]}
18... Nxd3 {[%clk 0:01:42.6]} 19. Qxd3 {[%clk 0:01:44.9]} 19... f5 {[%clk
0:01:40.4]} 20. exf5 {[%clk 0:01:42.5]} 20... Qxf5 {[%clk 0:01:38]} 21. Qxf5
{[%clk 0:01:42]} 21... Rxf5 {[%clk 0:01:38.1]} 22. Nb5 {[%clk 0:01:42.7]} 22...
Rf7 {[%clk 0:01:36.7]} 23. a4 {[%clk 0:01:41.4]} 23... b6 {[%clk 0:01:26.8]} 24.
Ra2 {[%clk 0:01:33.6]} 24... Kf8 {[%clk 0:01:24.3]} 25. h4 {[%clk 0:01:31.8]}
25... Ke8 {[%clk 0:01:22.8]} 26. h5 {[%clk 0:01:28.2]} 26... Nf8 {[%clk
0:01:18.7]} 27. f4 {[%clk 0:01:28.2]} 27... exf4 {[%clk 0:01:10.6]} 28. Rxf4
{[%clk 0:01:27.6]} 28... Rxf4 {[%clk 0:01:01.6]} 29. gxf4 {[%clk 0:01:28.5]}
29... Rc8 {[%clk 0:00:50.6]} 30. a5 {[%clk 0:01:19.6]} 30... bxa5 {[%clk
0:00:50.3]} 31. Rxa5 {[%clk 0:01:20.5]} 31... Nh7 {[%clk 0:00:50.4]} 32. c5
{[%clk 0:00:23.9]} 32... dxc5 {[%clk 0:00:36.7]} 33. d6 {[%clk 0:00:24.1]} 33...
c6 {[%clk 0:00:36]} 34. Ra7 {[%clk 0:00:23]} 34... Nf6 {[%clk 0:00:18.3]} 35.
Re7+ {[%clk 0:00:17.9]} 35... Kf8 {[%clk 0:00:14.9]} 36. Nc7 {[%clk 0:00:18.8]}
36... Nxh5 {[%clk 0:00:08.5]} 37. Ne6+ {[%clk 0:00:18.1]} 37... Kg8 {[%clk
0:00:06.3]} 38. d7 {[%clk 0:00:18.7]} 1-0